bitfinex/quotes_ETHUSD_20250406
["timestamp","ask_amount","ask_price","bid_price","bid_amount"]
[1743956671403,0.02143,1751.9,1751.8,5.481]
[1743956673805,0.02143,1751.9,1751.8,5.90498297]
[1743956674180,0.02143,1751.9,1751.8,6.73448297]
[1743956674882,0.02143,1751.9,1751.8,6.74048297]
[1743956677873,0.02143,1751.9,1751.8,6.34041637]
[1743956678077,0.02143,1751.9,1751.8,5.91098297]
[1743956678898,0.02143,1751.9,1751.8,10.71076297]
[1743956680184,0.02143,1751.9,1751.8,11.14098949]
[1743956681212,0.02143,1751.9,1751.8,9.90186297]
[1743956681384,0.02143,1751.9,1751.8,4.41986297]
[1743956681577,0.02143,1751.9,1751.8,9.91086297]
[1743956682329,0.02143,1751.9,1751.8,10.33762406]
[1743956683612,0.02143,1751.9,1751.8,9.91086297]
[1743956684908,0.02143,1751.9,1751.8,4.41986297]
[1743956685211,0.02143,1751.9,1751.8,9.96494084]
[1743956686520,0.02143,1751.9,1751.8,9.90786297]
[1743956688116,0.02143,1751.9,1751.8,9.96493597]
[1743956688630,0.02143,1751.9,1751.8,9.96493525]
[1743956689185,0.02143,1751.9,1751.8,9.90786297]
[1743956689614,0.02143,1751.9,1751.8,9.96493674]
[1743956689807,0.02143,1751.9,1751.8,9.90786297]
[1743956690984,0.02143,1751.9,1751.8,9.89586297]
[1743956694647,4.02434561,1751.9,1751.8,9.88986297]
[1743956695935,0.02143,1751.9,1751.8,9.88986297]
[1743956696434,0.02143,1751.9,1751.8,10.66896297]
[1743956698412,0.02143,1751.9,1751.8,9.88986297]
[1743956698921,0.02143,1751.9,1751.8,9.94694073]
[1743956700945,0.02143,1751.9,1751.8,10.74574073]
[1743956701143,0.02143,1751.9,1751.8,10.68866297]
[1743956702262,0.02143,1751.9,1751.8,10.7457309]
[1743956702857,4.00291561,1752.3,1752.2,3.99497]
[1743956703043,4.00291561,1752.5,1752.4,3.99452]
[1743956703848,4.81271561,1752.6,1752.5,3.99429]
[1743956705262,4.81271561,1752.6,1752.5,4.41827297]
[1743956705561,4.00291561,1752.6,1752.5,4.41827297]
[1743956706363,0.05,1752.9,1752.8,3.99361]
[1743956706655,0.8598,1752.9,1752.8,5.477]
[1743956707561,0.8598,1752.9,1752.8,9.47061]
[1743956707749,4.86271561,1752.9,1752.8,9.47061]
[1743956708531,4.05291561,1752.9,1752.8,9.47061]
[1743956710031,4.05291561,1752.9,1752.8,9.89412162]
[1743956710630,0.7808,1753.5,1753.1,3.99292]
[1743956710835,4.00291561,1753.4,1753.2,9.46763]
[1743956711035,4.00291561,1753.4,1753.2,9.46753]
[1743956711269,4.00291561,1753.4,1753.3,3.99247]
[1743956711645,0.0168988,1753.6,1753.3,3.99247]
[1743956711646,4.78371561,1753.6,1753.4,3.99224]
[1743956711846,4.00291561,1753.6,1753.4,3.99224]
[1743956712042,4.78371561,1753.8,1753.7,3.99156]
[1743956712242,4.78371561,1753.8,1753.7,9.47656]
[1743956712665,4.00291561,1753.8,1753.7,9.47656]
[1743956712873,0.05,1753.9,1753.7,9.4764]
[1743956713075,7.05291561,1753.9,1753.8,3.99133]
[1743956713371,0.05,1753.9,1753.8,3.99133]
[1743956714044,4.05291561,1753.9,1753.8,3.99133]
[1743956714238,4.05291561,1753.9,1753.8,9.47833]
[1743956715571,0.7629,1753.8,1753.5,3.99182]
[1743956715782,4.00291561,1753.7,1753.6,9.47667]
[1743956716866,4.76581561,1753.7,1753.6,5.485]
[1743956717377,4.76581561,1753.7,1753.6,9.47678]
[1743956718853,4.76581561,1753.7,1753.6,5.485]
[1743956719045,4.00291561,1753.7,1753.6,5.485]
[1743956719377,4.00291561,1753.7,1753.6,9.47678]
[1743956719574,4.00291561,1753.7,1753.6,5.485]
[1743956721148,4.00291561,1753.7,1753.6,9.47678]
[1743956722981,4.05291561,1753.9,1753.8,3.99133]
[1743956724283,0.05,1753.9,1753.8,4.76233]
[1743956726173,0.05,1753.9,1753.8,4.81933731]
[1743956726486,0.05,1753.9,1753.8,5.19146318]
[1743956729456,0.05,1753.9,1753.8,5.61227575]
[1743956730798,0.05,1753.9,1753.8,11.12027575]
[1743956730992,0.05,1753.9,1753.8,17.23027575]
[1743956732096,0.05,1753.9,1753.8,17.22627575]
[1743956737907,0.05,1753.9,1753.8,16.45527575]
[1743956745211,4.80401561,1754.3,1754.2,3.99042]
[1743956745412,4.00291561,1754.3,1754.2,9.46442]
[1743956745610,4.80421561,1754.5,1754.4,3.98996]
[1743956746417,4.80421561,1754.5,1754.4,4.41077257]
[1743956747313,4.80421561,1754.5,1754.4,0.42081257]
[1743956750422,4.80421561,1754.5,1754.4,5.88681257]
[1743956753402,5.35421561,1754.5,1754.4,5.88681257]
[1743956756118,9.34395561,1754.5,1754.4,5.87281257]
[1743956756305,12.34395561,1754.5,1754.4,5.87281257]
[1743956757829,8.35421561,1754.5,1754.4,5.87281257]
[1743956758502,12.34395561,1754.5,1754.4,5.87281257]
[1743956759132,12.34395561,1754.5,1754.4,0.42081257]
[1743956759318,17.98023278,1754.5,1754.4,0.42081257]
[1743956760002,7.53996,1754.4,1754.3,5.451]
[1743956760219,8.3309588,1754.4,1754.3,5.451]
[1743956760522,0.55,1754.2,1753.9,45.02]
[1743956760732,0.55,1754.2,1754.0,5.449]
[1743956760890,4.00291561,1754.1,1754.0,5.449]
[1743956761097,4.00291561,1754.1,1754.0,9.43987]
[1743956761340,4.00291561,1754.3,1754.2,3.99042]
[1743956761634,4.00291561,1754.5,1754.3,3.99004]
[1743956761831,4.00291561,1754.5,1754.4,9.44096]
[1743956761832,7.00291561,1754.5,1754.4,9.44096]
[1743956762526,7.55291561,1754.5,1754.4,5.87633909]
[1743956763434,11.54265561,1754.5,1754.4,5.87633909]
[1743956763599,11.54265561,1754.5,1754.4,0.42533909]
[1743956763798,11.54265561,1754.5,1754.4,5.88133909]
[1743956764332,7.55291561,1754.5,1754.4,5.456]
[1743956765928,7.00291561,1754.5,1754.4,5.456]
[1743956766432,7.00291561,1754.5,1754.4,9.87127254]
[1743956766933,4.00291561,1754.5,1754.4,9.87127254]
[1743956768405,4.00291561,1754.5,1754.4,5.88131254]
[1743956768601,4.55291561,1754.5,1754.4,5.88131254]
[1743956768817,5.35761561,1754.5,1754.4,5.88131254]
[1743956770110,5.35761561,1754.5,1754.4,9.87127254]
[1743956770918,4.00291561,1754.5,1754.4,9.87127254]
[1743956771402,4.55291561,1754.5,1754.4,5.88131254]
[1743956771603,4.00291561,1754.5,1754.4,9.87127254]
[1743956772740,4.00291561,1754.5,1754.4,10.70307254]
[1743956772945,0.55,1754.7,1754.5,3.98965]
[1743956772946,4.00291561,1754.6,1754.5,3.98965]
[1743956773841,4.00291561,1754.6,1754.5,4.41496254]
[1743956774342,4.00291561,1754.6,1754.5,0.42531254]
[1743956776741,0.02147,1754.9,1754.6,0.8211]
[1743956777039,0.02147,1754.9,1754.6,6.9311]
[1743956777240,0.02147,1754.9,1754.7,3.98908]
[1743956777545,0.02147,1754.9,1754.8,10.68446254]
[1743956777741,0.02147,1754.9,1754.8,6.69541254]
[1743956778043,0.02147,1754.9,1754.8,10.7414377]
[1743956778242,0.02147,1754.9,1754.8,16.8514377]
[1743956778444,0.02147,1754.9,1754.8,16.79446254]
[1743956779218,0.02147,1754.9,1754.8,58.23401487]
[1743956781520,0.7873,1755.7,1755.4,3.98769]
[1743956781748,4.79021561,1755.7,1755.5,5.449]
[1743956782119,0.16141228,1755.6,1755.5,5.449]
[1743956782521,0.71141228,1755.6,1755.5,5.449]
[1743956784152,0.16141228,1755.6,1755.5,9.43646]
[1743956786252,0.71141228,1755.6,1755.5,5.449]
[1743956787550,1.3373,1755.5,1755.3,10.09776]
[1743956787752,4.55291561,1755.4,1755.3,6.11]
[1743956787957,4.71480507,1755.4,1755.3,11.557]
[1743956788123,4.73170387,1755.4,1755.3,11.557]
[1743956788324,4.73170387,1755.4,1755.3,15.54492]
[1743956788325,4.71480507,1755.4,1755.3,15.54492]
[1743956788840,4.71480507,1755.4,1755.3,11.557]
[1743956789426,4.71480507,1755.4,1755.3,15.54492]
[1743956789624,4.71480507,1755.4,1755.3,9.43492]
[1743956789830,4.71480507,1755.4,1755.3,5.447]
[1743956791274,5.47600507,1755.4,1755.0,3.98859]
[1743956791485,1.3112,1755.2,1755.1,5.447]
[1743956791684,0.55,1755.0,1754.8,48.99784]
[1743956791983,4.00291561,1754.9,1754.8,45.00892]
[1743956792334,4.00291561,1754.9,1754.8,50.45492]
[1743956794659,4.00291561,1754.9,1754.8,50.87773123]
[1743956794863,4.76411561,1754.9,1754.8,46.88881123]
[1743956796428,4.76411561,1754.9,1754.8,46.466]
[1743956796627,4.76411561,1754.9,1754.8,46.467]
[1743956796936,4.76411561,1754.9,1754.8,41.02]
[1743956797163,4.76411561,1754.9,1754.8,46.467]
[1743956797684,4.76411561,1754.9,1754.8,50.45605]
[1743956798435,4.76411561,1754.9,1754.8,9.43605]
[1743956799261,4.00291561,1754.9,1754.8,9.85926038]
[1743956799464,4.00291561,1754.9,1754.8,5.87021038]
[1743956799680,4.00291561,1754.9,1754.8,9.85926038]
[1743956801348,4.83351561,1754.9,1754.8,5.87021038]
[1743956801545,12.92759597,1754.9,1754.8,5.87021038]
[1743956801847,12.91069717,1754.9,1754.8,5.87021038]
[1743956802044,0.8306,1754.7,1754.6,5.447]
[1743956802244,16.37941441,1754.7,1754.6,5.447]
[1743956802448,16.36251561,1754.7,1754.6,5.447]
[1743956802664,17.99876717,1754.7,1754.6,5.447]
[1743956802843,3.98972,1754.6,1754.2,41.008]
[1743956803049,4.55291561,1754.3,1754.2,41.008]
[1743956803250,5.38351561,1754.3,1754.2,46.455]
[1743956803447,5.38351561,1754.3,1754.2,41.008]
[1743956803673,5.38351561,1754.3,1754.2,46.455]
[1743956805474,5.38351561,1754.3,1754.2,5.447]
[1743956806346,5.38351561,1754.3,1754.2,9.43742]
[1743956808677,5.38351561,1754.3,1754.2,5.447]
[1743956809774,5.40041441,1754.3,1754.2,5.447]
[1743956810479,0.55,1754.2,1754.0,3.99072]
[1743956810687,4.55291561,1754.1,1754.0,3.99072]
[1743956810847,4.55291561,1754.1,1754.0,9.43872]
[1743956812188,4.55291561,1754.1,1753.8,3.99129]
[1743956812402,4.00291561,1753.9,1753.7,3.99153]
[1743956812602,0.55,1753.8,1753.7,3.99153]
[1743956812757,0.55,1753.8,1753.7,9.43953]
[1743956814099,4.00291561,1754.1,1753.9,3.99102]
[1743956814306,0.55,1754.1,1754.0,3.99079]
[1743956814673,0.55,1754.1,1754.0,7.98158]
[1743956814875,4.00291561,1754.2,1754.1,3.99065]
[1743956815076,4.81331441,1754.4,1754.2,3.99022]
[1743956815307,4.79641561,1754.4,1754.2,3.99022]
[1743956815601,0.55,1754.3,1754.2,3.99022]
[1743956817009,0.5668988,1754.3,1754.1,5.449]
[1743956817165,7.00291561,1754.2,1754.1,5.449]
[1743956820380,7.55291561,1754.2,1754.1,5.449]
[1743956820965,7.56981441,1754.2,1754.1,5.449]
[1743956821399,0.55,1754.1,1753.9,3.99105]
[1743956821587,4.55291561,1754.0,1753.9,9.44005]
[1743956821800,4.55291561,1754.0,1753.9,5.86724882]
[1743956822270,4.55291561,1754.0,1753.9,9.85834882]
[1743956822471,3.0,1754.1,1754.0,3.99078]
[1743956822660,3.55,1754.1,1754.0,3.99078]
[1743956822866,3.55,1754.1,1754.0,4.40902882]
[1743956824215,4.00291561,1754.4,1754.3,3.99019]
[1743956824507,7.55291561,1754.4,1754.3,5.449]
[1743956824721,7.55291561,1754.4,1754.3,9.43919]
[1743956826103,7.55291561,1754.4,1754.3,5.449]
[1743956829927,7.55291561,1754.4,1754.3,5.86825328]
[1743956830628,7.55291561,1754.4,1754.3,9.85844328]
[1743956830784,0.55,1754.4,1754.3,9.85844328]
[1743956831123,0.55,1754.4,1754.3,9.91543963]
[1743956832610,0.55,1754.4,1754.3,5.86825328]
[1743956833109,0.55,1754.4,1754.3,9.85844328]
[1743956840717,0.55,1754.4,1754.3,5.86825328]
[1743956840886,0.55,1754.4,1754.3,9.85844328]
[1743956845248,4.55291561,1754.4,1754.3,9.85844328]
[1743956845397,4.55291561,1754.4,1754.3,5.86825328]
[1743956845592,5.10480597,1754.4,1754.3,0.41925328]
[1743956845794,5.10480597,1754.4,1754.3,5.86725328]
[1743956845993,12.09476597,1754.4,1754.3,0.41925328]
[1743956846213,12.07786717,1754.4,1754.3,0.41925328]
[1743956846812,16.87778278,1754.4,1754.3,0.41925328]
[1743956847017,4.347,1754.2,1754.1,5.448]
[1743956847214,13.24596941,1754.2,1754.1,5.448]
[1743956847541,9.23865061,1754.2,1754.1,5.448]
[1743956847723,9.25554941,1754.2,1754.1,5.448]
[1743956849237,13.24596941,1754.2,1754.1,5.448]
[1743956849439,9.23865061,1754.2,1754.1,5.448]
[1743956849607,9.25554941,1754.2,1754.1,5.448]
[1743956850132,13.24596941,1754.2,1754.1,5.448]
[1743956850432,13.22907061,1754.2,1754.1,5.448]
[1743956851729,4.54081,1754.1,1753.7,4.77073]
[1743956851929,4.55291561,1753.8,1753.7,3.99153]
[1743956852234,4.55291561,1753.8,1753.7,9.43953]
[1743956852732,4.55291561,1753.8,1753.7,4.40819325]
[1743956853032,4.55291561,1753.8,1753.7,9.85719325]
[1743956855026,0.55,1753.8,1753.7,9.85719325]
[1743956855227,0.5668988,1754.1,1753.9,7.9822]
[1743956855611,0.5668988,1754.1,1753.9,3.9911]
[1743956855820,0.5668988,1754.1,1753.9,7.98211]
[1743956856236,0.5668988,1754.1,1754.0,3.99087]
[1743956856423,0.5668988,1754.1,1754.0,4.40753325]
[1743956857039,0.55,1754.1,1754.0,0.41666325]
[1743956857641,3.55,1754.1,1754.0,3.99087]
[1743956858345,3.55,1754.1,1753.9,3.99099]
[1743956859750,3.55,1754.1,1753.9,7.98195]
[1743956859942,3.55,1754.1,1754.0,3.99087]
[1743956862548,4.00291561,1754.5,1754.0,0.82101273]
[1743956862715,0.0168988,1754.5,1754.2,7.98068]
[1743956862915,4.00291561,1754.6,1754.5,3.98974]
[1743956863135,4.00291561,1754.6,1754.5,5.449]
[1743956863434,7.55291561,1754.6,1754.5,5.449]
[1743956863770,8.72403597,1754.6,1754.5,5.449]
[1743956863947,8.17403597,1754.6,1754.5,5.449]
[1743956864333,8.72403597,1754.6,1754.5,5.449]
[1743956864632,8.70713717,1754.6,1754.5,5.449]
[1743956864845,7.55291561,1754.6,1754.5,5.449]
[1743956866022,3.0,1754.6,1754.5,9.43874]
[1743956866327,3.0,1754.6,1754.5,10.20274]
[1743956866543,4.00291561,1754.9,1754.7,3.98917]
[1743956866544,4.01981441,1754.9,1754.7,3.98917]
[1743956866851,3.55,1754.8,1754.6,3.98951]
[1743956868153,4.80181441,1754.7,1754.5,3.98972]
[1743956868361,7.55291561,1754.7,1754.6,9.43751]
[1743956868524,7.55291561,1754.7,1754.6,10.24681]
[1743956869554,4.55291561,1755.0,1754.8,3.98889]
[1743956869782,4.00291561,1755.0,1754.8,3.98889]
[1743956869925,4.00291561,1755.0,1754.9,4.79813]
[1743956870244,4.55291561,1755.0,1754.9,4.79813]
[1743956870423,0.55,1754.9,1754.7,4.79858]
[1743956870624,0.55,1754.9,1754.7,3.98928]
[1743956870827,0.55,1754.9,1754.8,3.98905]
[1743956871728,0.5668988,1755.2,1755.0,3.9886]
[1743956871923,4.56981441,1755.2,1755.1,5.447]
[1743956872128,5.39231705,1755.2,1755.1,5.447]
[1743956872355,5.40921585,1755.2,1755.1,5.447]
[1743956872560,5.39231705,1755.2,1755.1,5.447]
[1743956873362,4.55291561,1755.2,1755.1,5.447]
[1743956873596,4.00291561,1755.2,1755.1,9.43537]
[1743956874238,4.00291561,1755.2,1755.1,10.20657]
[1743956874445,3.0,1755.3,1755.2,3.98813]
[1743956874640,0.55,1755.2,1755.1,10.20657]
[1743956874845,4.55291561,1755.2,1755.1,10.20657]
[1743956875053,5.00820717,1755.2,1755.1,5.447]
[1743956875364,8.84930597,1755.2,1755.1,5.447]
[1743956876541,4.84639036,1755.2,1755.1,5.447]
[1743956876739,8.84930597,1755.2,1755.1,5.447]
[1743956877377,3.5668988,1755.2,1755.1,5.447]
[1743956877667,7.55291561,1755.2,1755.1,5.447]
[1743956878183,4.55291561,1755.2,1755.1,9.43537]
[1743956878364,4.55291561,1755.2,1755.1,5.447]
[1743956878868,12.30125561,1755.2,1754.8,3.98904]
[1743956879168,4.55291561,1755.0,1754.9,5.446]
[1743956880264,4.55291561,1755.0,1754.9,9.43483]
[1743956880582,4.55291561,1755.0,1754.9,5.446]
[1743956880952,4.55291561,1755.0,1754.9,9.43483]
[1743956882287,4.01981441,1755.1,1755.0,3.9886]
[1743956882472,3.0,1755.2,1755.1,3.98837]
[1743956883391,3.55,1755.2,1755.1,3.98837]
[1743956883553,0.55,1755.1,1755.0,4.8068]
[1743956884893,0.5,1755.1,1755.0,4.8068]
[1743956885391,0.5,1755.1,1755.0,0.8182]
[1743956885602,0.5,1755.1,1754.9,9.4347]
[1743956886362,0.5,1755.1,1755.0,3.9886]
[1743956888192,0.5,1755.1,1754.9,9.4347]
[1743956888400,0.5,1755.1,1754.9,13.42339]
[1743956888787,0.5,1755.1,1755.0,3.9886]
[1743956889179,0.5,1755.1,1755.0,4.86377402]
[1743956889379,0.55,1755.2,1755.1,3.98826]
[1743956890803,0.55,1755.2,1755.0,4.86376402]
[1743956891112,0.55,1755.2,1755.1,3.98837]
[1743956891675,0.55,1755.2,1755.1,4.40411536]
[1743956892309,0.7563,1755.8,1755.6,3.98707]
[1743956892622,3.7563,1755.8,1755.7,5.445]
[1743956893006,3.7731988,1755.8,1755.7,5.445]
[1743956893384,4.53045222,1755.8,1755.7,5.445]
[1743956893607,5.08045222,1755.8,1755.7,5.445]
[1743956893909,9.06723222,1755.8,1755.7,5.445]
[1743956897976,0.55,1755.8,1755.7,5.445]
[1743956898410,4.5536788,1755.8,1755.7,5.445]
[1743956899905,0.5668988,1755.8,1755.7,5.445]
[1743956900311,4.5536788,1755.8,1755.7,5.445]
[1743956900696,0.5668988,1755.8,1755.7,5.445]
[1743956901211,0.05,1755.9,1755.7,9.43201]
[1743956901389,0.05,1755.9,1755.8,3.98678]
[1743956901983,0.55,1755.8,1755.7,5.85880745]
[1743956902299,4.55291561,1755.8,1755.7,5.85880745]
[1743956904406,4.56981441,1755.8,1755.7,5.443]
[1743956905403,4.55291561,1755.8,1755.7,9.43001]
[1743956905719,4.55291561,1755.8,1755.7,5.443]
[1743956905916,0.55,1755.8,1755.7,5.443]
[1743956906419,0.55,1755.8,1755.7,10.24601]
[1743956906823,0.55,1755.8,1755.7,5.85841586]
[1743956907019,0.05,1755.9,1755.8,3.98678]
[1743956907243,0.05,1755.9,1755.8,4.80278]
[1743956908115,0.05,1755.9,1755.8,4.85972729]
[1743956908308,0.05,1755.9,1755.8,4.80278]
[1743956909886,0.05,1755.9,1755.8,5.21819586]
[1743956910089,0.05,1755.9,1755.8,4.40219586]
[1743956910289,0.05,1755.9,1755.8,5.85741586]
[1743956911623,0.05,1755.9,1755.8,9.84419586]
[1743956911997,0.05,1755.9,1755.8,5.85741586]
[1743956912720,4.60291561,1755.9,1755.8,0.41541586]
[1743956912934,12.40776561,1755.9,1755.8,5.85741586]
[1743956913238,12.40776561,1755.9,1755.8,5.442]
[1743956914232,8.42121561,1755.9,1755.8,5.442]
[1743956914722,3.6,1755.9,1755.8,5.442]
[1743956914891,3.6,1755.9,1755.8,9.42878]
[1743956915318,3.6,1755.9,1755.8,9.84425692]
[1743956917327,3.6,1755.9,1755.8,0.41547692]
[1743956917535,3.6168988,1755.9,1755.8,5.85747692]
[1743956917836,3.6,1755.9,1755.8,6.65957692]
[1743956918028,3.6,1755.9,1755.8,10.64635692]
[1743956918222,0.6,1755.9,1755.8,10.64635692]
[1743956918430,0.05,1755.9,1755.8,10.64635692]
[1743956919932,0.05,1755.9,1755.8,10.70330429]
[1743956923326,0.05,1755.9,1755.8,10.64635692]
[1743956925963,0.05,1755.9,1755.8,10.70329246]
[1743956926186,0.05,1755.9,1755.8,10.64635692]
[1743956928272,0.05,1755.9,1755.8,10.64435692]
[1743956928566,0.05,1755.9,1755.8,5.20435692]
[1743956928800,0.05,1755.9,1755.8,10.64435692]
[1743956929115,0.05,1755.9,1755.8,10.70130093]
[1743956929465,0.05,1755.9,1755.8,10.64435692]
[1743956929758,0.05,1755.9,1755.8,10.70130094]
[1743956936017,0.05,1755.9,1755.8,0.41547692]
[1743956936222,5.40691561,1755.9,1755.8,5.85547692]
[1743956936936,5.42381441,1755.9,1755.8,5.85547692]
[1743956937319,5.40691561,1755.9,1755.8,5.85547692]
[1743956938023,9.41036441,1755.9,1755.8,0.41547692]
[1743956938227,9.41036441,1755.9,1755.8,5.85547692]
[1743956938821,9.41036441,1755.9,1755.8,5.44]
[1743956939320,5.42381441,1755.9,1755.8,5.44]
[1743956939667,1.404,1755.9,1755.8,5.44]
[1743956940264,5.40691561,1755.9,1755.8,5.44]
[1743956940764,5.42381441,1755.9,1755.8,5.44]
[1743956941374,5.40691561,1755.9,1755.8,5.44]
[1743956942464,5.40691561,1755.9,1755.8,5.85569762]
[1743956943039,5.40691561,1755.9,1755.8,0.41569762]
[1743956943379,5.40691561,1755.9,1755.8,5.85669762]
[1743956943582,9.39346561,1755.9,1755.8,5.441]
[1743956943762,9.41036441,1755.9,1755.8,5.441]
[1743956943964,3.55,1755.8,1755.6,40.989]
[1743956944169,3.55,1755.8,1755.7,5.441]
[1743956944341,3.5668988,1755.8,1755.7,5.441]
[1743956944735,7.5536788,1755.8,1755.7,5.441]
[1743956944935,8.3408788,1755.8,1755.7,5.441]
[1743956945162,9.97891324,1755.8,1755.7,0.41575066]
[1743956945369,9.97891324,1755.8,1755.7,5.85675066]
[1743956945663,9.97891324,1755.8,1755.7,0.41575066]
[1743956946372,8.35384,1755.6,1755.5,5.441]
[1743956946571,8.3707388,1755.6,1755.5,5.441]
[1743956946736,0.55,1755.5,1755.1,3.98827]
[1743956946939,9.35743561,1755.3,1754.9,40.986]
[1743956947234,9.35743561,1755.3,1755.2,0.41551439]
[1743956947235,4.3666,1755.3,1755.2,0.41551439]
[1743956947437,3.55,1755.3,1755.2,0.41551439]
[1743956947851,3.55,1755.3,1755.2,5.85651439]
[1743956948069,7.55291561,1755.3,1755.2,5.85651439]
[1743956948640,7.55291561,1755.3,1755.2,5.441]
[1743956948842,11.54083561,1755.3,1755.2,5.441]
[1743956951075,7.55291561,1755.3,1755.2,5.441]
[1743956951275,3.0,1755.2,1754.9,44.97466]
[1743956951480,3.0,1755.2,1755.0,9.4295]
[1743956952044,4.01981441,1755.3,1755.1,3.98837]
[1743956952343,0.55,1755.2,1755.1,3.98837]
[1743956953151,0.55,1755.2,1755.1,4.80267]
[1743956953570,0.7856,1755.6,1755.2,3.98814]
[1743956953747,0.55,1755.5,1755.3,3.98792]
[1743956953950,0.55,1755.5,1755.4,5.442]
[1743956954149,4.55291561,1755.5,1755.4,5.442]
[1743956954946,4.56981441,1755.5,1755.4,5.442]
[1743956955151,10.57714085,1755.5,1755.4,5.442]
[1743956955353,13.57714085,1755.5,1755.4,5.442]
[1743956955582,13.56024205,1755.5,1755.4,5.442]
[1743956955782,12.32597561,1755.5,1755.4,5.442]
[1743956956271,8.33851561,1755.5,1755.2,3.98814]
[1743956956587,8.35541441,1755.5,1755.3,5.442]
[1743956957883,12.34290441,1755.5,1755.1,3.98823]
[1743956958089,12.32600561,1755.5,1755.2,5.442]
[1743956958390,0.0168988,1755.4,1755.2,5.442]
[1743956958989,0.0168988,1755.4,1755.1,3.98823]
[1743956959189,0.0168988,1755.4,1755.3,5.442]
[1743956960390,4.5545888,1755.4,1755.3,5.442]
[1743956961670,0.55,1755.2,1754.9,4.80298]
[1743956961885,4.55291561,1755.2,1755.0,9.43059]
[1743956962060,4.56981441,1755.2,1755.0,5.442]
[1743956962255,5.35711441,1755.2,1754.9,3.98867]
[1743956962578,9.34528441,1755.2,1755.1,5.442]
[1743956964167,5.35711441,1755.2,1755.1,5.442]
[1743956966885,9.29162685,1755.2,1755.1,0.41575682]
[1743956967089,17.28268246,1755.2,1755.1,0.41575682]
[1743956967277,17.26578366,1755.2,1755.1,0.41575682]
[1743956967691,17.69023378,1755.2,1755.1,0.41575682]
[1743956967890,23.69023378,1755.2,1755.1,0.41575682]
[1743956968097,9.32904561,1754.9,1754.8,5.442]
[1743956968266,0.55,1754.5,1754.2,8.7559]
[1743956968616,0.55,1754.3,1754.1,7.98114]
[1743956968795,0.55,1754.3,1754.2,5.442]
[1743956969172,4.5571088,1754.3,1754.0,41.7772]
[1743956969398,0.55,1754.1,1754.0,41.002]
[1743956969598,0.55,1754.1,1754.0,46.444]
[1743956969872,0.55,1754.1,1754.0,46.445]
[1743956971173,0.5668988,1754.1,1754.0,46.445]
[1743956971368,0.5668988,1754.1,1754.0,41.002]
[1743956971608,0.5668988,1754.1,1754.0,46.445]
[1743956972004,1.50067324,1754.1,1754.0,5.443]
[1743956972211,5.49132324,1754.1,1754.0,5.443]
[1743956972410,8.49132324,1754.1,1753.7,3.99138]
[1743956972595,8.49132324,1754.1,1753.9,5.443]
[1743956972800,4.55291561,1754.0,1753.9,5.443]
[1743956973202,4.56981441,1754.0,1753.9,5.443]
[1743956974280,0.55,1753.9,1753.8,3.99129]
[1743956974613,0.55,1753.9,1753.8,9.43529]
[1743956975701,0.55,1753.9,1753.8,5.444]
[1743956975896,0.55,1753.9,1753.7,3.99138]
[1743956976101,0.55,1753.9,1753.8,5.444]
[1743956977315,0.55,1753.9,1753.8,9.43533]
[1743956977883,0.55,1753.9,1753.8,10.20973]
[1743956979917,0.55,1753.9,1753.8,5.444]
[1743956980419,0.55,1753.9,1753.8,5.85286725]
[1743956981007,0.55,1753.9,1753.8,0.40886725]
[1743956981214,0.55,1753.9,1753.8,5.85386725]
[1743956981632,0.55,1753.9,1753.8,5.445]
[1743956984407,1.3115,1753.9,1753.8,5.445]
[1743956985206,0.55,1753.9,1753.8,5.445]
[1743956986480,1.48222544,1753.9,1753.8,5.445]
[1743956987084,1.48222544,1753.9,1753.6,7.98345]
[1743956987390,4.55291561,1753.8,1753.7,5.445]
[1743956989645,0.55,1753.7,1753.5,3.99201]
[1743956989787,0.55,1753.5,1753.1,0.05]
[1743956989989,0.55,1753.5,1753.3,9.43845]
[1743956989990,4.00291561,1753.4,1753.3,9.43845]
[1743956990185,0.55,1753.5,1753.3,3.99245]
[1743956990401,0.55,1753.5,1753.3,9.43845]
[1743956991000,10.81661561,1753.9,1753.5,0.7762]
[1743956991299,3.55,1753.8,1753.6,7.98324]
[1743956991498,3.55,1753.8,1753.7,5.446]
[1743956992025,3.55,1753.8,1753.7,9.43756]
[1743956993219,0.55,1753.8,1753.7,9.43756]
[1743956994321,0.55,1753.8,1753.7,9.8474284]
[1743956995188,4.01981441,1754.0,1753.8,3.99133]
[1743956995391,0.5668988,1754.1,1753.8,4.76753]
[1743956995719,4.80471,1754.0,1753.7,0.4098684]
[1743956995889,4.00291561,1753.8,1753.7,0.4098684]
[1743956996088,4.00291561,1753.8,1753.7,5.8558684]
[1743956997591,0.5668988,1753.9,1753.7,5.8558684]
[1743956997993,0.5668988,1753.9,1753.8,0.4098684]
[1743956999296,1.10525024,1753.9,1753.8,0.4098684]
[1743956999492,1.10525024,1753.9,1753.8,5.8558684]
[1743957001214,0.5668988,1753.9,1753.8,9.8471984]
[1743957001426,3.55,1754.0,1753.8,9.8471084]
[1743957001626,3.55,1754.0,1753.8,5.8558684]
[1743957001936,3.55,1754.0,1753.8,9.8470984]
[1743957002136,3.5668988,1754.1,1753.8,9.8470984]
[1743957002292,9.19464324,1754.1,1753.8,5.8558684]
[1743957002492,9.19464324,1754.1,1753.9,0.4098684]
[1743957002903,13.18545324,1754.1,1753.9,0.4098684]
[1743957003112,13.16855444,1754.1,1753.9,0.4098684]
[1743957003315,4.5577688,1754.0,1753.9,0.4098684]
[1743957003516,13.75303573,1754.0,1753.9,0.4098684]
[1743957003729,13.73613693,1754.0,1753.9,0.4098684]
[1743957004468,9.74526693,1754.0,1753.9,0.4098684]
[1743957004666,9.76216573,1754.0,1753.9,0.4098684]